bitfinex-derivatives/quotes_SOLF0:USTF0_20240906
["timestamp","ask_amount","ask_price","bid_price","bid_amount"]
[1725626466163,0.05156111,132.47,132.4,51.95]
[1725626466164,55.66651135,132.53,132.4,51.95]
[1725626466355,51.95,132.51,132.41,1.38742017]
[1725626466547,3.82375971,132.48,132.38,51.95]
[1725626466747,3.82375971,132.48,132.39,1.38742632]
[1725626467046,3.7748,132.48,132.43,3.7759]
[1725626467243,51.95,132.51,132.43,3.7759]
[1725626467551,0.04970467,132.45,132.43,3.7759]
[1725626467749,51.95,132.51,132.44,3.7758]
[1725626467944,51.95,132.51,132.38,51.95]
[1725626468147,0.05051363,132.49,132.38,51.95]
[1725626468346,3.7747,132.48,132.38,51.95]
[1725626468762,0.05447223,132.44,132.38,51.95]
[1725626469250,0.05447223,132.44,132.36,54.735]
[1725626469439,0.05447223,132.44,132.35,5.2661]
[1725626469639,51.95,132.44,132.35,2.57]
[1725626469849,55.7261,132.44,132.35,2.57]
[1725626470059,0.05241583,132.41,132.35,2.57]
[1725626470241,51.95,132.39,132.3,2.8183]
[1725626470443,3.7779,132.37,132.3,2.8183]
[1725626470647,51.95,132.41,132.3,54.7683]
[1725626470843,2.5705,132.43,132.28,51.95]
[1725626470844,51.95,132.39,132.28,51.95]
[1725626471048,51.95,132.39,132.24,5.4535]
[1725626471049,51.95,132.35,132.24,5.4535]
[1725626471245,51.95,132.33,132.24,5.4535]
[1725626471443,0.05189607,132.35,132.25,51.95]
[1725626471654,0.05189607,132.35,132.28,51.95]
[1725626471847,51.95,132.39,132.28,51.95]
[1725626472150,55.71218021,132.39,132.28,51.95]
[1725626472351,0.04870393,132.33,132.31,51.95]
[1725626472555,2.7427,132.44,132.31,51.95]
[1725626472750,250.8,132.6,132.37,51.95]
[1725626472943,51.95,132.5,132.43,3.7761]
[1725626473146,51.95,132.5,132.36,51.95]
[1725626473346,51.95,132.5,132.39,51.95]
[1725626473851,0.05647357,132.46,132.37,51.95]
[1725626474149,51.95,132.45,132.35,51.95]
[1725626474353,51.95,132.45,132.34,2.8183]
[1725626474746,51.95,132.45,132.34,54.7683]
[1725626474747,0.05064569,132.41,132.34,54.7683]
[1725626475156,0.05064569,132.41,132.34,2.8183]
[1725626475652,0.05064569,132.41,132.38,3.7773]
[1725626476053,0.05064569,132.41,132.39,51.95]
[1725626476252,0.05064569,132.41,132.4,55.727]
[1725626476557,8.0723,132.52,132.4,51.95]
[1725626476745,51.95,132.54,132.41,51.95]
[1725626476946,51.95,132.52,132.4,51.95]
[1725626477147,3.7749,132.48,132.41,1.3872772]
[1725626477352,3.7749,132.48,132.4,3.7767]
[1725626477353,51.95,132.5,132.38,51.95]
[1725626477850,51.95,132.48,132.43,0.05130666]
[1725626478249,55.7249,132.48,132.43,0.05130666]
[1725626478443,51.95,132.48,132.43,0.05130666]
[1725626478852,51.95,132.48,132.3,7.5595]
[1725626478853,51.95,132.45,132.26,3.70022644]
[1725626479063,51.95,132.41,132.29,51.95]
[1725626479255,51.95,132.41,132.3,1.38838217]
[1725626479557,2.6738,132.44,132.26,51.95]
[1725626479558,51.95,132.39,132.26,51.95]
[1725626479855,2.6738,132.44,132.28,51.95]
[1725626479856,51.95,132.41,132.28,51.95]
[1725626480061,51.95,132.47,132.36,51.95]
[1725626480258,5.5119,132.49,132.37,51.95]
[1725626480458,5.5119,132.49,132.38,51.95]
[1725626480757,0.05249258,132.43,132.4,0.04861832]
[1725626480959,0.05249258,132.43,132.42,3.7764]
[1725626481264,2.6326,132.53,132.42,3.7764]
[1725626481265,51.95,132.52,132.42,51.95]
[1725626481451,51.95,132.52,132.37,3.74905291]
[1725626481761,0.04805219,132.44,132.38,1.3878506]
[1725626481947,0.04805219,132.44,132.36,51.95]
[1725626482358,51.95,132.48,132.36,51.95]
[1725626482558,3.7751,132.47,132.38,51.95]
[1725626482854,51.95,132.52,132.41,51.95]
[1725626483054,0.05344392,132.44,132.41,51.95]
[1725626483255,0.05344392,132.44,132.43,3.7761]
[1725626483458,51.95,132.49,132.39,51.95]
[1725626483664,3.7744,132.5,132.41,51.95]
[1725626483851,51.95,132.52,132.39,51.95]
[1725626484047,0.04924052,132.47,132.39,51.95]
[1725626484246,0.04924052,132.47,132.37,51.95]
[1725626484461,51.95,132.5,132.37,51.95]
[1725626484761,0.04789836,132.43,132.37,51.95]
[1725626485758,0.04789836,132.43,132.4,3.7768]
[1725626486260,3.7765,132.42,132.34,5.4454]
[1725626486559,51.99789836,132.43,132.31,51.95]
[1725626486761,3.7754,132.46,132.4,3.7769]
[1725626487052,2.8272,132.52,132.39,51.95]
[1725626487053,51.95,132.5,132.39,51.95]
[1725626487454,51.95,132.5,132.41,3.7767]
[1725626487655,51.95,132.5,132.4,51.95]
[1725626487959,0.05219918,132.46,132.42,3.7762]
[1725626488158,0.05219918,132.46,132.38,2.6547]
[1725626488354,3.7764,132.42,132.37,3.7778]
[1725626488556,51.95,132.45,132.31,5.4346]
[1725626488754,51.95,132.43,132.31,57.3846]
[1725626489149,3.7768,132.41,132.35,3.7784]
[1725626489355,51.95,132.4,132.31,5.4346]
[1725626489752,51.95,132.42,132.31,57.3846]
[1725626489958,51.95,132.4,132.31,2.7799]
[1725626490162,51.95,132.4,132.33,3.7788]
[1725626490456,0.05592877,132.38,132.31,54.7299]
[1725626490760,0.05592877,132.38,132.35,3.83407969]
[1725626490956,0.05592877,132.38,132.35,0.05597969]
[1725626491659,0.05592877,132.38,132.35,3.83417969]
[1725626491861,0.05592877,132.38,132.35,0.05597969]
[1725626492654,51.95,132.36,132.35,0.05597969]
[1725626493256,51.95,132.36,132.21,51.95]
[1725626493458,54.58,132.35,132.23,51.95]
[1725626493663,3.7779,132.37,132.3,3.7796]
[1725626493856,51.95,132.38,132.26,51.95]
[1725626494058,51.95,132.38,132.27,2.7471]
[1725626494367,51.95,132.38,132.27,4.13623584]
[1725626494563,0.05166792,132.34,132.3,51.95]
[1725626494957,0.05166792,132.34,132.31,2.7204]
[1725626495158,0.05166792,132.34,132.28,51.95]
[1725626495558,0.05166792,132.34,132.32,3.779]
[1725626495760,0.05166792,132.34,132.27,2.7471]
[1725626496053,0.05166792,132.34,132.3,3.7796]
[1725626496461,0.05166792,132.34,132.28,51.95]
[1725626496662,0.05166792,132.34,132.31,0.05077981]
[1725626498558,52.00166792,132.34,132.31,0.05077981]
[1725626499365,0.05166792,132.34,132.31,0.05077981]
[1725626500174,0.05166792,132.34,132.33,3.7789]
[1725626500861,0.05166792,132.34,132.31,2.77917981]
[1725626501265,0.05166792,132.34,132.31,0.05077981]
[1725626502561,0.05166792,132.34,132.31,3.83007981]
[1725626503464,0.05166792,132.34,132.31,0.05077981]
[1725626503865,0.05166792,132.34,132.33,3.7789]
[1725626504567,0.05166792,132.34,132.31,0.05077981]
[1725626505667,3.7789,132.33,132.31,0.05077981]
[1725626505863,52.00166792,132.34,132.31,0.05077981]
[1725626506768,55.78046792,132.34,132.31,0.05077981]
[1725626506963,0.05166792,132.34,132.31,0.05077981]
[1725626507873,51.95,132.33,132.24,3.7813]
[1725626508363,3.7803,132.29,132.24,3.7813]
[1725626509167,0.05748752,132.28,132.24,3.7813]
[1725626509561,0.05748752,132.28,132.22,2.7049]
[1725626511077,0.05748752,132.28,132.24,3.7814]
[1725626511368,0.05748752,132.28,132.22,54.6549]
[1725626511565,55.7288,132.34,132.28,3.7802]
[1725626511767,51.95,132.34,132.22,54.6549]
[1725626511960,3.74650113,132.38,132.22,54.6549]
[1725626511961,51.95,132.32,132.22,2.7049]
[1725626512666,3.78,132.3,132.24,3.7814]
[1725626512863,3.74650113,132.38,132.26,0.05191411]
[1725626512864,0.05516418,132.28,132.26,0.05191411]
[1725626513263,55.7307,132.27,132.19,2.7465]
[1725626513566,51.95,132.27,132.19,2.7465]
[1725626513874,55.7313,132.25,132.2,3.7827]
[1725626514066,43.59,132.24,132.2,3.7827]
[1725626514268,43.6403868,132.24,132.17,2.7909]
[1725626515179,43.59,132.22,132.17,2.7909]
[1725626515679,43.59,132.2,132.15,2.7675]
[1725626515874,43.59,132.2,132.15,3.7839]
[1725626516374,47.3728,132.2,132.14,3.7842]
[1725626516774,43.59,132.18,132.11,2.5796]
[1725626517174,43.59,132.21,132.11,46.1696]
[1725626517476,0.0555444,132.16,132.15,3.7839]
[1725626517868,46.2523,132.24,132.13,43.59]
[1725626518374,0.05466166,132.17,132.13,43.59]
[1725626518686,43.59,132.21,132.12,43.59]
[1725626518877,43.59,132.19,132.11,2.5796]
[1725626519075,0.04935894,132.16,132.11,2.5796]
[1725626519889,0.04935894,132.16,132.14,3.7841]
[1725626520272,0.04935894,132.16,132.11,2.5796]
[1725626520479,0.04935894,132.16,132.14,0.05041599]
[1725626520984,43.59,132.15,132.14,0.05041599]
[1725626521575,0.04935894,132.16,132.14,0.05041599]
[1725626521782,43.59,132.24,132.14,43.64041599]
[1725626521980,46.3026,132.26,132.16,43.59]
[1725626522281,46.3026,132.26,132.15,5.2579]
[1725626522589,2.7126,132.26,132.18,43.59]
[1725626522975,3.7806,132.28,132.22,3.7819]
[1725626523176,0.05231707,132.23,132.18,43.59]
[1725626523584,43.59,132.25,132.16,43.59]
[1725626523891,43.59,132.28,132.18,43.59]
[1725626524089,43.59,132.28,132.15,5.2579]
[1725626524090,0.04755007,132.22,132.16,52.29]
[1725626525298,0.04755007,132.22,132.18,0.05054557]
[1725626526989,52.33755007,132.22,132.18,0.05054557]
[1725626527186,52.29,132.2,132.18,0.05054557]
[1725626527584,52.29,132.2,132.09,5.3788]
[1725626527785,52.29,132.17,132.09,2.6649]
[1725626527982,52.29,132.15,132.09,2.6649]
[1725626528184,52.29,132.15,132.03,55.0039]
[1725626528383,52.29,132.11,132.01,2.8121]
[1725626528785,56.0754,132.11,132.04,3.7872]
[1725626529097,0.05509765,132.07,132.05,0.04809409]
[1725626529592,52.29,132.16,132.05,52.29]
[1725626530089,0.05162797,132.07,132.06,2.5883]
[1725626530291,55.0293,132.21,132.06,58.98326071]
[1725626530488,55.0293,132.21,132.12,3.7848]
[1725626530683,52.29,132.18,132.07,52.29]
[1725626530894,52.29,132.16,132.06,5.3022]
[1725626531084,52.29,132.2,132.06,5.3022]
[1725626531085,52.29,132.14,132.06,5.3022]
[1725626531687,52.34722259,132.11,132.01,52.29]
[1725626531894,52.34722259,132.11,132.01,5.3683]
[1725626532096,0.05722259,132.11,132.01,57.6583]
[1725626532394,52.29,132.12,132.02,1.39155426]
[1725626532593,52.29,132.1,132.01,5.3683]
[1725626532800,56.0761,132.08,132.01,9.1563]
[1725626532994,52.29,132.08,131.96,57.6583]
[1725626533493,52.29,132.08,131.97,1.39190732]
[1725626533702,52.29,132.05,132.03,0.05602528]
[1725626533993,52.29,132.1,132.03,0.05602528]
[1725626534192,0.04781832,132.05,131.99,4.02000732]
[1725626534392,0.04781832,132.05,131.99,2.6281]
[1725626534583,52.29,132.07,131.99,2.6281]
[1725626534788,2.8029,132.11,132.01,52.29]
[1725626534988,0.05183459,132.03,132.01,52.29]
[1725626535295,52.29,132.12,132.05,3.7869]
[1725626535296,3.785,132.12,132.05,3.7869]
[1725626535498,2.6702,132.13,132.05,0.05033552]
[1725626535800,3.786,132.09,132.05,0.05033552]
[1725626535987,52.29,132.1,131.99,2.6281]
[1725626536295,52.29,132.08,131.99,54.9181]
[1725626536492,0.05193897,132.06,132.03,0.05725445]
[1725626538888,52.34193897,132.06,132.03,0.05725445]
[1725626539094,52.29,132.04,131.97,1.39201481]
[1725626539290,52.29,132.04,131.93,1.39201481]
[1725626539501,52.29,132.04,131.92,52.29]
[1725626539796,2.6303,132.05,131.95,52.29]
[1725626539992,2.6303,132.05,131.98,52.29]
[1725626540190,3.72280916,132.08,131.98,52.29]
[1725626540501,0.05304221,132.03,131.99,1.3919313]
[1725626540703,0.05304221,132.03,131.98,52.29]
[1725626540900,3.7867,132.06,131.96,52.29]
[1725626541211,52.29,132.07,131.97,1.39199781]
[1725626541395,0.05193731,132.02,131.98,57.8111]
[1725626541998,3.7874,132.04,131.98,3.7888]
[1725626542405,0.05199174,132.01,131.98,3.7888]
[1725626543002,0.05199174,132.01,131.98,52.29]
[1725626543299,0.05199174,132.01,131.98,52.34769194]
[1725626543605,0.05199174,132.01,131.98,0.05769194]
[1725626544106,0.05199174,132.01,131.99,3.7885]
[1725626544701,0.05199174,132.01,131.99,3.7887]
[1725626545609,0.05199174,132.01,131.98,0.05769194]
[1725626547009,52.29,132.0,131.92,1.39208522]
[1725626547198,3.82036369,132.01,131.93,1.39230547]
[1725626547703,2.7475,132.03,131.94,1.39226754]
[1725626547902,2.6394,132.04,131.96,52.29]
[1725626548104,55.0375,132.09,131.97,1.39226754]
[1725626548307,0.05513326,132.0,131.97,4.11266754]
[1725626548511,0.05513326,132.0,131.97,2.7204]
[1725626548802,3.7881,132.01,131.92,3.82172678]
[1725626548998,52.29,132.03,131.93,1.39211209]
[1725626549201,0.05099079,132.0,131.95,52.29]
[1725626549408,0.05099079,132.0,131.96,1.39211209]
[1725626549604,52.29,132.06,131.96,1.39211209]
[1725626549809,3.788,132.02,131.96,1.39211209]
[1725626550015,0.04783331,131.99,131.97,1.39209773]
[1725626550202,0.04783331,131.99,131.95,52.29]
[1725626550203,0.04783331,131.99,131.96,1.39209773]
[1725626550403,3.7874,132.04,131.97,52.29]
[1725626550608,3.78458216,132.07,131.96,3.7894]
[1725626550910,0.05721148,131.99,131.97,1.39209011]
[1725626551104,52.29,132.06,131.97,1.39209011]
[1725626551308,6.44464154,132.08,131.96,52.29]
[1725626551309,58.73464154,132.08,131.96,52.29]
[1725626551509,58.73464154,132.08,131.97,1.3920903]
[1725626551808,0.05676012,131.99,131.97,1.3920903]
[1725626552005,3.7874,132.04,131.98,3.789]
[1725626552315,0.04974339,131.99,131.94,52.29]
[1725626552511,0.04974339,131.99,131.97,3.7892]
[1725626552813,52.29,132.05,131.92,52.29]
[1725626553009,52.29,132.03,131.93,1.39211254]
[1725626553316,0.0486832,132.0,131.94,1.39211254]
[1725626553608,0.0486832,132.0,131.94,3.79]
[1725626553810,0.0486832,132.0,131.95,1.39211807]
[1725626554006,0.0486832,132.0,131.95,2.78424159]
[1725626554207,52.29,132.03,131.96,1.39212352]
[1725626554208,3.7882,132.01,131.96,1.39212352]
[1725626554813,0.05100658,132.0,131.96,1.39212352]
[1725626555013,0.05100658,132.0,131.96,53.68212352]
[1725626555209,0.05100658,132.0,131.99,3.7887]
[1725626555406,3.7857,132.1,131.99,1.39202845]
[1725626555617,2.8108,132.13,132.02,52.29]
[1725626555804,52.29,132.12,132.0,55.1069]
[1725626556012,3.7866,132.07,132.0,2.8169]
[1725626556223,52.29,132.1,132.0,2.8169]
[1725626556415,3.7863,132.08,132.0,2.8169]
[1725626556714,0.0545786,132.06,132.0,2.8169]
[1725626557517,0.0545786,132.06,132.0,55.1069]
[1725626557713,0.0545786,132.06,132.0,2.8169]
[1725626557920,3.8413786,132.06,132.0,2.8169]
[1725626558514,3.8413786,132.06,132.0,6.6051]
[1725626558914,0.0545786,132.06,132.0,6.6051]
[1725626559115,0.0545786,132.06,131.97,2.6487]
[1725626559324,52.29,132.05,131.97,2.6487]
[1725626559519,3.7874,132.04,131.97,2.6487]
[1725626559722,52.29,132.11,131.99,52.29]
[1725626559920,0.04918279,132.02,131.97,54.9387]
[1725626560317,56.05353761,132.08,131.97,54.9387]
[1725626560722,0.04784609,132.01,131.97,54.9387]
[1725626561132,56.05353761,132.08,131.97,54.9387]
[1725626561624,69.20353761,132.08,131.97,6.36440719]
[1725626561825,0.0484745,132.04,131.97,2.6487]
[1725626562023,0.0484745,132.04,132.0,3.7884]
[1725626563020,0.0484745,132.04,131.97,2.6487]
[1725626563236,0.0484745,132.04,132.01,65.44]
[1725626563422,0.0484745,132.04,132.02,2.6785]
[1725626564336,0.0484745,132.04,132.03,3.7875]
[1725626565425,70.6907,132.14,132.03,65.44]
[1725626565630,2.6436,132.14,132.03,65.44]
[1725626565843,65.44,132.16,132.04,2.8106]
[1725626566044,68.0606,132.18,132.06,65.44]
[1725626566842,68.0606,132.18,132.11,0.05124735]
[1725626567335,0.05710078,132.13,132.11,0.05124735]
[1725626567542,68.0606,132.18,132.11,0.05124735]
[1725626567738,3.7837,132.17,132.11,0.05124735]
[1725626568243,65.44,132.18,132.11,0.05124735]
[1725626568540,2.7105,132.19,132.13,3.7846]
[1725626568729,69.2227,132.2,132.13,3.7846]
[1725626568930,65.44,132.16,132.05,2.6222]
[1725626569131,65.44,132.2,132.05,2.6222]
[1725626569132,65.44,132.14,132.05,2.6222]
[1725626569335,65.44,132.12,132.05,2.6222]
[1725626569928,65.44,132.12,132.06,3.7865]
[1725626570343,0.05107051,132.1,132.07,0.05635791]
[1725626572842,0.05107051,132.1,132.08,3.7859]
[1725626573446,65.44,132.16,132.07,0.05635791]
[1725626573945,3.7846,132.14,132.07,3.7862]
[1725626574148,65.44,132.16,132.05,2.6222]
[1725626574740,65.44,132.16,132.09,0.05566146]
[1725626574937,3.7845,132.14,132.09,0.05566146]
[1725626575141,65.44,132.16,132.09,0.05566146]
[1725626575546,3.7844,132.14,132.09,0.05566146]
[1725626575739,3.83338958,132.14,132.09,0.05566146]
[1725626576237,54.48,132.13,132.09,0.05566146]
[1725626576438,0.04898958,132.14,132.09,0.05566146]
[1725626578444,32.24829671,132.28,132.09,0.05566146]
[1725626578445,2.7159,132.29,132.22,3.7819]
[1725626578641,2.7159,132.29,132.24,54.48]
[1725626578843,5.6538,132.31,132.22,54.48]
[1725626579238,54.48,132.3,132.2,54.48]
[1725626579443,3.7806,132.28,132.21,3.7823]
[1725626579642,2.7266,132.29,132.25,0.0561014]
[1725626580251,74.7534,132.31,132.25,0.0561014]
[1725626580446,2.8309,132.31,132.25,0.0561014]
[1725626580639,3.7798,132.3,132.25,0.0561014]
[1725626580841,65.32,132.29,132.25,0.0561014]
[1725626581048,68.0466,132.29,132.25,0.0561014]
[1725626581544,2.8309,132.31,132.25,0.0561014]
[1725626581745,65.32,132.34,132.25,0.0561014]
[1725626582138,68.0466,132.36,132.28,3.7802]
[1725626582342,68.0466,132.36,132.25,5.5419]
[1725626582343,71.82610007,132.36,132.25,5.5419]
[1725626582751,65.32,132.32,132.31,0.05600991]
[1725626582954,65.32,132.32,132.17,2.7562]
[1725626583246,3.7812,132.26,132.14,2.6355]
[1725626583453,65.32,132.16,132.1,5.5374]
[1725626583756,65.32,132.16,132.1,3.7853]
[1725626583941,65.32,132.16,132.05,8.1729]
[1725626584146,65.32,132.14,132.05,8.1729]
[1725626584458,0.05038414,132.12,132.09,0.04836609]
[1725626584960,65.32,132.16,132.05,73.4929]
[1725626585250,65.32,132.16,132.09,0.05752267]
[1725626585648,65.32,132.16,132.1,3.7854]
[1725626586352,65.32,132.16,132.12,0.05339952]
[1725626586554,65.32,132.14,132.12,0.05339952]
[1725626586744,65.32,132.14,132.08,3.7861]
[1725626586949,65.32,132.14,132.05,8.1729]
[1725626587154,0.05379201,132.15,132.12,3.83761981]
[1725626587347,65.32,132.2,132.12,0.05281981]
[1725626587657,65.32,132.2,132.09,65.32]
[1725626587658,3.7831,132.19,132.09,65.32]
[1725626587949,65.32,132.2,132.15,0.05551353]
[1725626588256,69.1027,132.2,132.15,0.05551353]
[1725626588466,65.32,132.2,132.15,0.05551353]
[1725626588955,65.32,132.18,132.15,0.05551353]
[1725626589150,65.32,132.16,132.05,73.4929]
[1725626589558,65.32,132.16,132.1,3.7854]
[1725626589857,65.32,132.16,132.05,73.4929]
[1725626590061,69.03563434,132.18,132.07,65.32]
[1725626590251,65.32,132.16,132.05,73.4929]
[1725626590955,2.5979,132.17,132.07,65.32]
[1725626591147,65.32,132.2,132.1,65.32]
[1725626591348,65.32,132.22,132.1,69.09999791]
[1725626591759,3.7826,132.21,132.14,3.7842]
[1725626591962,65.32,132.22,132.1,69.09999791]
[1725626592447,65.32,132.2,132.06,65.32]
[1725626592656,65.32,132.18,132.06,65.32]
[1725626592851,69.1039,132.16,132.09,3.7856]
[1725626593054,69.1039,132.16,132.06,65.32]
[1725626593449,69.1039,132.16,132.09,3.7857]
[1725626594253,69.1039,132.16,132.1,3.7855]
[1725626594756,69.1039,132.16,132.06,65.32]
[1725626594757,67.9845,132.18,132.06,65.32]
[1725626595059,0.05103547,132.14,132.06,65.32]
[1725626595257,0.05103547,132.14,132.11,0.0480194]
[1725626595453,67.9845,132.18,132.11,0.0480194]
[1725626595772,0.05590641,132.14,132.11,3.7852]
[1725626596060,0.05590641,132.14,132.13,0.05116213]
[1725626596455,65.32,132.16,132.05,8.1729]
[1725626596658,65.32,132.16,132.07,65.32]
[1725626596858,2.6645,132.18,132.07,65.32]
[1725626596859,67.9845,132.18,132.07,65.32]
[1725626597159,67.9845,132.18,132.09,65.32]
[1725626597357,67.9845,132.18,132.07,65.32]
[1725626597549,65.32,132.16,132.05,73.4929]
[1725626597757,65.32,132.14,132.05,8.1729]
[1725626598360,65.32,132.14,132.05,11.9597]
[1725626598361,3.7853,132.11,132.05,11.9597]
[1725626598555,65.32,132.14,132.05,11.9597]
[1725626598757,65.32,132.12,132.05,8.1729]
[1725626599560,65.32,132.12,132.05,11.9597]
[1725626599766,65.32,132.14,132.05,8.1729]
[1725626600460,65.32,132.17,132.06,65.32]
[1725626600657,3.784,132.16,132.1,3.7855]
[1725626600858,0.05576294,132.11,132.08,0.05099361]
[1725626601059,3.784,132.16,132.06,65.32]
[1725626601365,3.7841,132.15,132.09,3.7856]
[1725626601659,65.32,132.17,132.09,3.7856]
[1725626601857,65.32,132.15,132.05,8.1729]
[1725626602063,65.32,132.17,132.06,65.32]
[1725626602756,65.32,132.17,132.08,65.32]
[1725626602954,65.32,132.13,131.9,18.9562]
[1725626603154,65.32,132.13,132.02,2.8364]
[1725626603364,65.32,132.13,132.02,71.87620566]
[1725626603561,65.32,132.15,132.04,65.32]
[1725626603761,3.7844,132.14,132.08,3.786]
[1725626604065,2.6645,132.18,132.06,65.32]
[1725626604268,2.6645,132.18,132.09,65.32]
[1725626604464,3.7837,132.17,132.1,6.435]
[1725626604769,65.32,132.15,132.04,65.32]
[1725626604974,3.7846,132.14,132.07,3.7862]
[1725626605261,65.32,132.13,132.04,2.6496]
[1725626605768,65.32,132.11,132.04,2.6496]
[1725626606067,65.32,132.15,132.04,67.9696]
[1725626606259,2.6645,132.18,132.04,67.9696]
[1725626606564,2.6645,132.18,132.06,65.32]
[1725626606768,65.32,132.19,132.08,65.32]
[1725626607269,65.32,132.21,132.11,65.32]
[1725626607560,65.32,132.21,132.12,8.0112]
[1725626607863,6.5175,132.22,132.15,3.8327411]
[1725626608261,0.04921999,132.18,132.15,3.8327411]
[1725626608560,0.04921999,132.18,132.15,0.0488411]
[1725626608867,0.04921999,132.18,132.15,3.8329411]
[1725626609067,0.04921999,132.18,132.15,0.0488411]
[1725626609770,0.04921999,132.18,132.04,3.83495784]
[1725626609771,3.90688557,132.18,132.04,3.83495784]
[1725626610067,3.7843,132.15,132.07,3.7862]
[1725626610260,3.7843,132.15,132.06,69.16706863]
[1725626610463,65.32,132.18,132.06,69.16706863]
[1725626610665,3.784,132.16,132.08,3.7859]
[1725626611064,0.0504892,132.13,132.08,3.7859]
[1725626611365,2.7352,132.22,132.12,65.32]
[1725626611569,2.7352,132.22,132.08,65.32]
[1725626611570,2.7352,132.22,132.13,2.6286]
[1725626611767,2.7352,132.22,132.13,67.9486]
[1725626612066,7.5577,132.34,132.16,65.32]
[1725626612270,65.32,132.28,132.16,65.32]
[1725626612474,3.7818,132.23,132.16,65.32]
[1725626612668,65.32,132.28,132.16,65.32]
[1725626612865,0.05730978,132.22,132.2,0.05397739]
[1725626614575,3.7824,132.21,132.2,0.05397739]
[1725626615268,65.37730978,132.22,132.13,2.6286]
[1725626615571,2.6275,132.21,132.09,65.32]
[1725626615762,3.7837,132.17,132.09,65.32]
[1725626616173,3.7837,132.17,132.1,3.7855]
[1725626616471,2.6275,132.21,132.08,2.5686]
[1725626616472,3.7845,132.14,132.08,2.5686]
[1725626616666,3.83658657,132.14,132.08,5.3996]
[1725626617373,0.05208657,132.14,132.08,9.1857]
[1725626619272,0.05208657,132.14,132.09,3.7858]
[1725626619472,0.05208657,132.14,132.09,65.32]
[1725626619674,0.05208657,132.14,132.1,0.05508505]
[1725626620080,0.05208657,132.14,132.1,65.37508505]
[1725626620279,27.5130158,132.38,132.21,130.0]
[1725626620471,27.5130158,132.38,132.1,3.05508505]
[1725626620472,3.7779,132.37,132.32,65.32]
[1725626620674,27.5130158,132.53,132.26,65.32]
[1725626620675,2.7793,132.45,132.35,65.32]
[1725626620978,0.27787709,132.44,132.39,65.24]
[1725626621182,7.89724504,132.51,132.42,65.24]
[1725626621374,5.4399,132.52,132.44,65.24]
[1725626621375,9.20513377,132.52,132.44,65.24]
[1725626621575,5.4399,132.52,132.44,65.24]
[1725626621880,65.24,132.61,132.46,65.24]
[1725626622077,9.3716665,132.73,132.49,69.0144]
[1725626622078,2.7001,132.6,132.49,69.0144]
[1725626622279,7.88131227,132.65,132.53,65.24]
[1725626622579,5.2129,132.72,132.59,65.24]
[1725626622772,65.24,132.71,132.59,65.24]
[1725626623171,3.7684,132.7,132.59,65.24]
[1725626623374,5.2129,132.72,132.63,65.24]
[1725626623575,4.68584043,132.73,132.66,65.24]
[1725626623780,4.68584043,132.73,132.68,65.24]
[1725626623972,4.68584043,132.73,132.63,65.24]
[1725626624173,4.68584043,132.73,132.64,5.37863696]
[1725626624371,65.24,132.74,132.59,65.24]
[1725626624576,65.24,132.74,132.6,12.94374824]
[1725626624783,65.24,132.72,132.61,5.3816627]
[1725626625079,3.86655408,132.77,132.61,8.05083101]
[1725626625080,65.24,132.69,132.61,8.05083101]
[1725626625282,3.7693,132.67,132.6,2.67127021]
[1725626625485,3.7693,132.67,132.61,8.06039147]